bitfinex-derivatives/quotes_ETHF0:USTF0_20260201
["timestamp","ask_amount","ask_price","bid_price","bid_amount"]
[1769974283481,0.00309859,2342.6,2341.9,2.43692883]
[1769974284276,0.00309859,2342.6,2341.9,6.28092883]
[1769974284483,2.39486986,2342.6,2341.9,3.844]
[1769974286277,2.39486986,2342.6,2342.0,3.844]
[1769974286480,2.39486986,2342.6,2341.9,3.844]
[1769974286883,2.39486986,2342.6,2342.0,3.844]
[1769974287187,2.39486986,2342.6,2341.9,3.844]
[1769974287379,2.39486986,2342.6,2341.8,2.43692883]
[1769974287679,2.39486986,2342.6,2341.9,3.844]
[1769974287878,2.39486986,2342.6,2341.9,6.28092883]
[1769974288080,2.39486986,2342.6,2342.0,3.844]
[1769974290385,0.00309859,2342.6,2342.0,6.28092883]
[1769974292490,0.00309859,2342.6,2342.1,3.844]
[1769974293290,2.39486986,2342.6,2342.1,3.844]
[1769974294088,1.89486986,2342.6,2342.1,3.844]
[1769974294991,1.8984415,2342.6,2342.1,3.844]
[1769974295391,1.8984415,2342.6,2342.2,3.844]
[1769974295591,1.8984415,2342.6,2342.1,3.844]
[1769974296093,1.8984415,2342.6,2342.2,3.844]
[1769974296292,1.8984415,2342.6,2342.0,2.43692883]
[1769974296293,1.8984415,2342.6,2342.1,3.844]
[1769974296791,1.8984415,2342.6,2342.2,3.844]
[1769974296988,1.8984415,2342.6,2342.1,6.28092883]
[1769974297187,0.00357164,2342.6,2342.1,2.43692883]
[1769974297394,0.00357164,2342.6,2342.2,3.844]
[1769974299392,0.00357164,2342.6,2342.3,3.844]
[1769974299595,5.09013631,2342.6,2342.2,3.844]
[1769974300093,5.09013631,2342.6,2342.3,3.844]
[1769974300394,5.09013631,2342.6,2342.2,3.844]
[1769974300889,5.09013631,2342.6,2341.3,6.41680431]
[1769974300890,1.61903727,2342.6,2341.6,2.45189052]
[1769974301894,1.62431063,2342.6,2341.6,2.45189052]
[1769974308995,2.41103727,2342.3,2341.2,2.40114873]
[1769974309195,2.62472727,2342.1,2341.0,6.24714873]
[1769974309391,2.41103727,2342.0,2341.0,6.24714873]
[1769974309591,2.41103727,2341.7,2340.7,2.40114873]
[1769974310300,2.62475727,2341.7,2340.7,2.40114873]
[1769974312503,2.62475727,2341.7,2340.9,2.40609807]
[1769974313198,6.31164117,2342.3,2341.1,2.40114873]
[1769974313505,2.62469727,2342.3,2341.1,2.40114873]
[1769974313700,0.00527336,2342.6,2341.1,2.40114873]
[1769974313701,2.41103727,2342.1,2341.1,2.40114873]
[1769974315204,2.41103727,2342.1,2340.9,0.00494934]
[1769974315205,2.62471727,2342.1,2340.9,2.40609807]
[1769974316807,2.41103727,2341.8,2340.9,0.00494934]
[1769974318307,2.41103727,2341.6,2340.9,0.00494934]
[1769974321111,2.62478727,2341.3,2340.3,2.40114873]
[1769974321505,5.08182291,2341.5,2340.3,2.40114873]
[1769974321506,2.62481727,2341.1,2340.3,2.40114873]
[1769974322107,2.62481727,2341.1,2340.3,2.40478806]
[1769974322909,2.62482727,2340.9,2340.3,0.00363933]
[1769974323110,7.49286018,2341.5,2340.3,2.40478806]
[1769974323310,5.08182291,2341.8,2340.3,2.40478806]
[1769974323512,5.08182291,2342.3,2340.7,2.40114873]
[1769974323810,2.41103727,2342.4,2340.7,2.40114873]
[1769974323811,7.49286018,2342.4,2340.8,2.40114873]
[1769974324312,7.49611813,2342.4,2340.8,2.40114873]
[1769974324713,7.49611813,2342.4,2341.1,2.40114873]
[1769974325413,2.41103727,2342.2,2341.1,2.40114873]
[1769974325914,2.41103727,2342.1,2340.9,2.40114873]
[1769974326114,2.41103727,2342.0,2340.9,2.40114873]
[1769974326410,2.41103727,2341.9,2340.9,2.40114873]
[1769974327413,7.49286018,2341.9,2340.9,2.40114873]
[1769974327613,2.42829513,2341.8,2340.4,2.28139956]
[1769974327810,2.42829513,2341.7,2340.4,2.28139956]
[1769974329111,2.42829513,2341.6,2340.4,2.28139956]
[1769974332315,2.42829513,2341.5,2340.4,2.28139956]
[1769974336317,2.42829513,2341.4,2340.4,2.28139956]
[1769974337017,1.92829513,2341.4,2340.4,2.28139956]
[1769974338409,5.08182291,2341.5,2340.4,2.28139956]
[1769974339017,7.51011804,2341.5,2340.4,2.28139956]
[1769974339718,5.08182291,2341.5,2340.4,2.28139956]
[1769974340518,5.08182291,2341.6,2340.6,2.28139956]
[1769974341012,5.08182291,2341.7,2340.7,2.28139956]
[1769974341217,5.08182291,2341.8,2340.7,2.28139956]
[1769974341912,5.08182291,2341.8,2340.8,2.28139956]
[1769974343518,5.08182291,2341.9,2341.0,2.28139956]
[1769974343720,5.08182291,2342.1,2341.0,6.20045582]
[1769974343923,5.08182291,2342.2,2341.1,2.28139956]
[1769974344221,5.08182291,2342.3,2341.2,2.28139956]
[1769974345025,5.08508086,2342.4,2341.2,2.28139956]
[1769974347023,0.00325795,2342.4,2341.2,2.28139956]
[1769974348426,5.29544291,2342.8,2341.4,2.28139956]
[1769974348627,5.29544291,2342.8,2341.3,2.54894509]
[1769974348628,5.29544291,2342.8,2341.6,2.28139956]
[1769974348826,5.08182291,2342.8,2341.6,2.28139956]
[1769974349227,5.08182291,2342.9,2341.6,2.28139956]
[1769974349527,5.08182291,2342.8,2341.6,2.28139956]
[1769974350126,5.08525464,2342.9,2341.6,2.28139956]
[1769974350729,7.51354977,2342.9,2341.6,2.28139956]
[1769974352230,0.00343173,2342.9,2341.8,2.49510956]
[1769974358133,0.00343173,2342.9,2342.0,1.64809544]
[1769974358430,0.00343173,2342.9,2342.0,1.65297523]
[1769974363338,1.69806551,2343.4,2342.0,1.65297523]
[1769974363539,1.69806551,2343.9,2342.6,1.86172544]
[1769974363732,1.69806551,2343.9,2342.8,1.64809544]
[1769974363928,1.69806551,2344.3,2342.8,1.64809544]
[1769974364130,6.31164117,2344.6,2342.8,1.64809544]
[1769974364131,1.69806551,2344.6,2343.3,1.64809544]
[1769974364434,1.7026205,2344.6,2343.5,1.64809544]
[1769974364834,0.00455499,2344.6,2343.5,1.64809544]
[1769974365236,0.00455499,2344.6,2343.5,1.86164544]
[1769974365435,1.53372623,2345.2,2343.6,1.55104944]
[1769974365637,1.53372623,2345.5,2343.6,1.55104944]
[1769974366339,0.00314757,2345.5,2343.9,1.76456944]
[1769974366545,0.00314757,2345.5,2344.3,1.55104944]
[1769974366744,1.5368738,2345.5,2344.5,1.55104944]
[1769974366944,0.00314757,2345.5,2344.5,1.55104944]
[1769974367840,1.53372623,2346.5,2344.6,1.55104944]
[1769974368348,1.53372623,2346.5,2344.6,1.76449944]
[1769974369046,1.53921026,2346.5,2344.6,1.76449944]
[1769974371240,1.53921026,2346.5,2344.6,1.55104944]
[1769974371441,1.53372623,2346.1,2344.6,1.55104944]
[1769974371642,1.53372623,2346.0,2344.6,1.55104944]
[1769974379258,1.53372623,2345.8,2344.4,2.505]
[1769974379556,1.53372623,2345.8,2344.1,1.55104944]
[1769974379753,1.53372623,2345.6,2344.1,1.55104944]
[1769974381857,1.53372623,2346.0,2344.1,1.76453944]
[1769974383866,1.53372623,2346.0,2344.3,1.55104944]
[1769974384160,1.53372623,2346.4,2344.8,1.55104944]
[1769974384360,1.53372623,2346.4,2345.0,1.55104944]
[1769974385564,1.53372623,2346.7,2345.2,1.55104944]
[1769974385862,1.53372623,2347.2,2345.4,1.76442944]
[1769974386259,1.53372623,2347.7,2345.9,1.55104944]
[1769974386455,1.53372623,2347.7,2346.1,1.55104944]
[1769974386761,1.53372623,2347.7,2346.3,1.55104944]
[1769974386959,0.21318,2347.6,2346.3,0.00392396]
[1769974387164,1.53372623,2347.5,2346.3,0.00392396]
[1769974387464,1.1911769,2347.0,2345.4,1.19088859]
[1769974387659,1.1911769,2346.8,2345.4,1.19088859]
[1769974388058,1.1911769,2346.8,2345.3,3.841]
[1769974388254,3.84365279,2347.7,2345.3,3.841]
[1769974388255,1.1911769,2346.6,2345.3,3.841]
[1769974388454,1.1911769,2346.6,2345.3,3.84472904]
[1769974389165,1.1911769,2346.6,2345.4,1.19088859]
[1769974389463,1.1911769,2347.2,2345.4,1.19088859]
[1769974390060,1.1911769,2347.2,2345.4,1.40426859]
[1769974390460,1.1911769,2346.7,2345.4,1.19088859]
[1769974392461,1.1911769,2347.0,2345.4,1.19088859]
[1769974393262,6.27299981,2346.9,2345.4,1.19088859]
[1769974393461,1.1911769,2346.8,2345.4,1.19088859]
[1769974393662,6.27299981,2346.8,2345.4,1.19088859]
[1769974393959,1.1911769,2346.5,2345.3,3.84472904]
[1769974394264,6.27299981,2346.3,2345.3,0.00372904]
[1769974394559,1.1911769,2346.2,2345.3,0.00372904]
[1769974395162,1.1911769,2346.0,2345.3,0.00372904]
[1769974395457,1.19477646,2346.0,2345.3,0.00372904]
[1769974395759,0.00359956,2346.0,2345.3,1.19461763]
[1769974397165,1.19477646,2346.0,2345.3,0.00372904]
[1769974398463,0.00359956,2346.0,2345.3,1.19461763]
[1769974399666,6.27299981,2346.9,2345.5,1.19088859]
[1769974400062,5.08182291,2347.1,2345.6,1.19088859]
[1769974400257,1.1911769,2347.0,2345.6,1.19088859]
[1769974400663,1.1911769,2346.9,2345.6,1.19088859]
[1769974400867,0.00297719,2347.0,2345.6,1.19088859]
[1769974401762,1.19415409,2347.0,2345.6,1.19088859]
[1769974404565,1.1911769,2346.9,2345.6,1.19088859]
[1769974405770,1.4044269,2346.9,2345.6,1.19088859]
[1769974405963,1.1911769,2346.8,2345.5,1.19088859]
[1769974406469,1.1911769,2346.7,2345.5,1.19088859]
[1769974407468,1.1911769,2346.6,2345.5,1.19088859]
[1769974409173,1.1911769,2346.5,2345.5,1.19088859]
[1769974410468,1.1911769,2346.5,2345.3,0.00372904]
[1769974410673,1.1911769,2346.5,2344.6,1.19088859]
[1769974410674,0.21334,2345.8,2344.6,1.19088859]
[1769974411072,5.29516291,2345.8,2344.6,1.19088859]
[1769974411473,5.08182291,2345.7,2344.6,1.19088859]
[1769974411773,5.08182291,2345.7,2344.6,1.1955016]
[1769974413973,5.29514291,2346.1,2344.6,1.1955016]
[1769974414574,5.08182291,2346.6,2344.8,1.19088859]
[1769974414775,5.08182291,2346.6,2345.0,1.19088859]
[1769974415572,5.29510291,2346.5,2345.0,1.19088859]
[1769974416777,5.08182291,2346.4,2345.0,1.19088859]
[1769974417869,5.29510291,2346.5,2345.0,1.19088859]
[1769974419373,5.08182291,2346.5,2345.1,1.00508997]
[1769974419574,0.21621719,2347.0,2345.5,1.00508997]
[1769974419774,0.21621719,2347.0,2345.6,1.00508997]
[1769974420577,5.08182291,2346.9,2345.6,1.00508997]
[1769974421477,5.08182291,2346.9,2345.8,1.00270761]
[1769974427277,5.08182291,2346.8,2345.8,1.00270761]
[1769974438288,5.08182291,2346.9,2345.8,1.00270761]
[1769974438490,0.00297719,2347.0,2345.8,1.00270761]
[1769974440293,0.00297719,2347.0,2346.0,0.98731117]
[1769974440490,5.08182291,2347.5,2346.2,0.98731117]
[1769974441192,5.08182291,2347.4,2346.2,0.98731117]
[1769974441691,5.08555195,2347.4,2346.2,0.98731117]
[1769974442188,5.08182291,2347.1,2346.2,0.98731117]
[1769974442787,6.31537021,2347.4,2346.2,0.98731117]
[1769974442788,5.08182291,2347.2,2346.2,0.98731117]
[1769974443492,5.08182291,2347.1,2346.2,0.98731117]
[1769974443986,5.08182291,2347.2,2346.2,0.98731117]
[1769974444186,5.08182291,2347.1,2346.2,0.98731117]
[1769974446092,5.08182291,2347.0,2346.2,0.98731117]
[1769974446890,5.08182291,2346.9,2345.7,0.9840016]
[1769974447088,5.08182291,2346.6,2345.7,0.9840016]
[1769974447296,5.08182291,2346.4,2345.7,0.9840016]
[1769974448297,5.08182291,2346.3,2345.7,0.9840016]
[1769974448993,0.21327,2346.7,2345.2,0.98483855]
[1769974448994,5.08182291,2346.2,2345.2,0.98483855]
[1769974449491,5.08182291,2346.4,2345.3,0.98538356]
[1769974449692,5.08182291,2346.5,2345.4,0.98538356]
[1769974450197,5.08182291,2346.5,2345.4,1.19875356]
[1769974450395,5.08182291,2346.8,2345.8,0.98538356]
[1769974450692,5.08182291,2346.9,2345.9,0.98538356]
[1769974453599,5.08182291,2346.8,2345.9,0.98538356]
[1769974453799,5.08182291,2346.7,2345.9,0.98538356]
[1769974454097,5.08182291,2346.6,2345.9,0.98538356]
[1769974456000,5.08182291,2346.5,2345.4,0.9866034]
[1769974456996,5.08182291,2346.4,2345.4,0.9866034]
[1769974457402,5.08182291,2346.5,2345.4,0.9866034]
[1769974458606,5.08182291,2346.9,2345.6,0.9851925]
[1769974458805,5.08182291,2347.0,2345.6,0.9851925]
[1769974459303,5.08182291,2347.0,2345.6,1.1985525]
[1769974460198,5.08182291,2347.1,2345.6,1.1985525]
[1769974461605,5.08182291,2347.1,2345.3,7.73702407]
[1769974461606,5.10210615,2348.1,2346.9,0.98477007]
[1769974461806,6.31164117,2348.6,2347.1,0.98477007]
[1769974462009,6.52473117,2348.6,2347.1,0.98477007]
[1769974462704,6.52473117,2348.6,2347.1,0.98998071]
[1769974462705,0.21309,2348.6,2347.1,0.98998071]
[1769974462907,0.21311,2348.4,2347.1,0.00521064]
[1769974464009,0.21312,2348.3,2347.1,0.00521064]
[1769974464199,2.828,2348.2,2347.1,0.99035259]
[1769974468010,0.21307,2348.8,2347.1,0.99035259]
[1769974468710,6.31164117,2348.6,2347.1,0.99035259]
[1769974469313,6.31164117,2349.1,2347.4,1.19973859]
[1769974469507,6.31164117,2349.1,2347.6,0.98654859]
[1769974470312,6.52468117,2349.2,2347.6,0.98654859]
[1769974470612,6.31164117,2349.6,2347.6,0.98654859]
[1769974470814,9.16158382,2349.7,2347.5,2.501]
[1769974470815,15.68621499,2349.7,2347.7,1.19971859]
[1769974471108,6.52463117,2349.7,2347.9,0.98654859]
[1769974471317,0.21299,2349.7,2347.9,0.98654859]
[1769974471510,0.21301,2349.5,2347.9,0.98654859]
[1769974472811,0.21305,2349.1,2347.9,0.98654859]
[1769974473015,0.21306,2349.0,2347.9,0.98654859]
[1769974473917,0.21306,2349.0,2347.6,0.98662554]
[1769974474610,0.21306,2349.0,2347.8,0.98662554]
[1769974475415,0.213,2349.6,2347.8,0.98662554]
[1769974475613,6.337,2349.7,2347.8,0.98662554]
[1769974475911,0.21306,2349.0,2347.8,0.98662554]
[1769974476413,0.21307,2348.8,2347.8,0.98662554]
[1769974476712,0.21307,2348.8,2347.6,3.837]
[1769974477012,2.5,2348.9,2347.2,0.98391778]
[1769974477013,0.21312,2348.4,2347.2,0.98391778]
[1769974477916,0.21305,2349.0,2347.2,0.98391778]
[1769974478116,8.81164117,2349.1,2347.2,0.98391778]
[1769974479311,0.21309,2348.7,2347.2,0.98391778]
[1769974480515,0.21309,2348.6,2347.2,0.98391778]
[1769974480714,6.31164117,2349.0,2347.2,0.98391778]
[1769974481011,0.21314,2348.1,2347.2,0.98391778]
[1769974481216,0.21319,2347.5,2346.6,0.98476869]
[1769974481719,10.14864117,2348.1,2346.6,0.98476869]
[1769974482016,6.31164117,2347.8,2346.3,0.98476869]
[1769974482217,6.3159691,2347.8,2346.3,0.98902356]
[1769974482610,0.21323,2347.1,2346.3,0.98902356]
[1769974483514,0.21324,2347.0,2346.3,0.98902356]
[1769974483711,0.21324,2347.0,2346.3,0.00425487]
[1769974484716,0.21325,2346.8,2345.7,4.82094971]
[1769974484919,0.21325,2346.8,2345.8,0.98394971]
[1769974485921,0.21325,2346.8,2345.8,0.98788993]
[1769974486719,0.21328,2346.5,2345.8,0.00394022]
[1769974487820,0.21329,2346.4,2345.8,0.00394022]
[1769974488021,0.2133,2346.3,2345.5,0.984514]
[1769974488821,9.34979147,2346.6,2344.9,0.98486753]
[1769974489120,0.21333,2346.0,2344.9,0.98846949]
[1769974489314,0.21714367,2346.0,2344.9,0.98846949]
[1769974490421,0.00381367,2346.0,2344.9,0.98846949]
[1769974495833,0.21334,2345.9,2344.9,0.98846949]
[1769974498928,0.00381367,2346.0,2344.9,0.98846949]
[1769974501832,0.21336,2345.7,2344.9,0.98846949]
[1769974503538,0.21338,2345.4,2344.9,0.00360196]
[1769974503836,2.502,2345.7,2344.6,0.54925721]
[1769974504030,0.21342,2345.0,2343.8,9.07269499]
[1769974504433,0.21345,2344.7,2343.4,3.84]
[1769974504637,0.21345,2344.7,2343.4,3.84455815]
[1769974505735,2.502,2344.8,2343.4,3.84455815]
[1769974505936,0.21339,2345.3,2343.5,0.7666369]
[1769974506238,3.84,2345.7,2343.8,0.7666369]
[1769974506439,0.21336,2345.6,2343.8,0.7666369]
[1769974509036,0.00381367,2346.0,2344.1,0.981002]
[1769974509244,0.00381367,2346.0,2344.2,0.767502]
[1769974511045,0.21336,2345.7,2344.2,0.767502]
[1769974512146,0.21337,2345.5,2344.2,0.767502]
[1769974521255,6.31164117,2345.6,2344.2,0.767502]
[1769974521556,6.31164117,2345.4,2344.2,0.767502]
[1769974521957,0.2134,2345.2,2344.2,0.767502]
[1769974522554,0.21345,2344.7,2343.5,2.503]
[1769974522757,0.21345,2344.6,2343.4,3.84555815]
[1769974523759,6.31164117,2344.8,2343.4,3.84555815]
[1769974523959,0.21347,2344.4,2343.4,0.00455815]
[1769974524457,0.21349,2344.2,2343.4,0.00455815]
[1769974524657,0.21655878,2344.2,2343.4,0.38873951]
[1769974528154,6.31470995,2344.2,2342.5,12.91276655]
[1769974528458,0.21352,2343.9,2342.5,12.91276655]
[1769974528859,0.21352,2343.9,2342.5,9.07176655]
[1769974529056,3.16152,2343.9,2342.5,9.07176655]
[1769974529255,0.00306878,2344.2,2342.6,2.62547942]
[1769974529455,0.00306878,2344.2,2342.7,0.21363]
[1769974530154,0.00306878,2344.2,2342.8,0.19189396]
[1769974530356,0.00306878,2344.2,2343.0,0.19189396]
[1769974532161,13.97644664,2344.9,2343.1,0.1923437]
[1769974532458,13.00458382,2345.1,2343.1,0.1923437]
[1769974532459,6.52508117,2344.8,2343.1,0.1923437]
[1769974532861,6.31164117,2344.8,2343.1,0.1923437]
[1769974533058,0.21349,2344.3,2343.1,0.1923437]
[1769974533263,0.21812349,2344.3,2343.1,0.1923437]
[1769974533460,3.14349,2344.2,2343.1,0.1923437]
[1769974534459,0.00463349,2344.3,2343.1,0.1923437]
[1769974536261,0.21344,2344.8,2343.1,0.1923437]
[1769974537355,0.21646534,2344.8,2343.1,0.1923437]
[1769974538161,0.00302534,2344.8,2343.1,0.1923437]
[1769974538362,0.21347,2344.4,2343.1,0.1923437]
[1769974543964,0.21351,2344.0,2343.1,0.1923437]
[1769974548270,6.52515117,2344.0,2343.1,0.1923437]
[1769974550275,6.31164117,2343.9,2343.1,0.1923437]
[1769974551077,6.31164117,2343.9,2342.5,9.07495494]
[1769974551078,0.3694016,2343.4,2342.5,9.07495494]
[1769974551580,0.3694216,2343.2,2342.5,0.00318839]
[1769974551972,0.3694316,2343.0,2342.5,0.00318839]
[1769974552170,0.1558316,2342.8,2341.3,2.52502257]
[1769974553174,0.15634162,2342.7,2341.4,0.15715154]
[1769974553378,0.15634162,2342.6,2341.4,0.15715154]
[1769974553580,6.31164117,2342.8,2341.4,0.15715154]
[1769974553877,3.162,2342.8,2341.4,0.15715154]
[1769974556076,3.32152997,2342.8,2341.4,0.15715154]
[1769974558480,0.15893768,2342.6,2341.4,0.15715154]
[1769974559186,3.28563,2342.7,2341.4,0.15715154]
[1769974559685,3.44427253,2342.7,2341.4,0.15715154]
[1769974560485,0.00353957,2343.0,2341.4,0.15715154]
[1769974560985,0.15962632,2342.7,2341.4,0.15715154]
[1769974561180,0.15962632,2342.6,2341.4,0.15715154]
[1769974562181,0.15962632,2342.3,2341.3,0.00304572]
[1769974562386,0.15962632,2341.8,2340.2,0.15715154]
[1769974562688,0.15962632,2341.5,2340.2,0.15715154]
[1769974562888,0.15962632,2341.3,2340.2,0.15715154]
[1769974563287,0.16279889,2341.3,2340.2,0.16226396]
[1769974564184,0.00317257,2341.3,2340.2,0.16226396]
[1769974565387,0.15936255,2341.3,2340.2,0.16226396]
[1769974566588,0.15618998,2341.2,2340.2,0.16226396]
[1769974567191,0.15808556,2341.1,2340.2,0.00511242]
[1769974567488,0.21378,2341.1,2340.2,0.00511242]
[1769974567690,0.15281919,2340.9,2339.5,0.15561285]
[1769974567991,0.21378,2341.0,2339.5,0.15561285]
[1769974568694,0.15599176,2341.3,2339.6,0.15561285]
[1769974569187,0.15599176,2341.3,2339.7,2.66261285]
[1769974569188,0.00317257,2341.3,2339.7,2.66261285]
[1769974569393,0.15281919,2341.2,2340.0,0.15561285]
[1769974570082,0.15281919,2341.1,2340.0,0.15561285]
[1769974570888,0.15281919,2341.0,2340.0,0.15561285]
[1769974571090,0.15281919,2341.0,2339.6,0.15561285]
[1769974571389,0.15281919,2340.8,2339.6,0.15561285]
[1769974571592,0.15281919,2340.7,2339.6,0.15561285]
[1769974571897,0.15281919,2340.6,2339.6,0.15561285]
[1769974572396,0.15281919,2340.6,2339.5,0.00542411]
[1769974572597,2.72082,2340.7,2339.5,0.16103696]
[1769974573892,0.15281919,2340.6,2339.5,0.16103696]
[1769974574093,0.36667919,2340.2,2339.5,0.00542411]
[1769974574397,0.15281919,2340.1,2339.5,0.00542411]
[1769974574591,0.21386,2340.2,2339.5,0.00542411]
[1769974574794,0.15281919,2340.4,2339.5,0.16103696]
[1769974574993,0.15281919,2340.6,2339.5,0.16103696]
[1769974575295,0.15281919,2340.2,2339.5,0.00542411]
[1769974575496,0.15281919,2340.2,2338.7,0.15561285]
[1769974575888,0.21385,2340.3,2338.7,0.15561285]
[1769974576396,0.36386497,2340.3,2338.7,0.1598327]
[1769974578000,0.14792513,2340.7,2339.0,0.15561285]
[1769974578196,0.36174513,2340.6,2339.0,0.15561285]
[1769974578402,0.14792513,2340.4,2339.0,0.15561285]
[1769974578700,0.14792513,2340.3,2339.0,0.15561285]
[1769974580703,0.21384,2340.4,2339.0,0.15561285]
[1769974584503,0.15078194,2340.3,2339.0,0.15561285]
[1769974585000,0.15074184,2340.2,2339.0,0.15561285]
[1769974585201,0.15074184,2340.0,2339.0,0.15561285]
[1769974585999,0.21387,2340.1,2339.0,0.15561285]
[1769974586804,0.15074184,2339.9,2338.7,0.1598327]
[1769974587309,0.21387,2340.0,2338.7,0.1598327]
[1769974587804,0.36528955,2339.9,2338.7,0.1598327]
[1769974588008,0.15140955,2339.7,2338.7,0.1598327]
[1769974588412,0.15140955,2339.6,2338.7,0.00421985]
[1769974588709,0.15683203,2339.6,2338.7,0.00421985]
[1769974590113,0.15683203,2339.6,2338.1,0.37757741]
[1769974590114,0.15281919,2339.3,2338.1,0.37757741]
[1769974590306,0.15620736,2339.6,2338.2,0.15561285]
[1769974590903,0.37011736,2339.6,2338.2,0.160811]
[1769974591106,0.15025298,2339.3,2338.2,0.160811]
[1769974591305,0.15025298,2339.2,2338.2,0.160811]
[1769974592113,0.15025298,2339.1,2338.2,0.00519815]
[1769974592814,0.21395,2339.2,2338.2,0.160811]
[1769974593313,0.00542248,2339.6,2338.2,0.160811]
[1769974594113,0.15460977,2339.6,2337.8,2.52502257]
[1769974594415,5.08863551,2338.6,2337.3,0.16579766]
[1769974594714,0.21401,2338.5,2337.3,0.16579766]
[1769974594915,0.21401,2338.5,2337.7,0.16579766]
[1769974595213,8.43160551,2339.0,2337.7,0.16884146]
[1769974595415,0.21398,2338.9,2337.7,0.16884146]
[1769974596210,2.6336475,2337.9,2336.1,0.16555018]
[1769974596414,0.21412,2337.3,2336.1,0.16555018]
[1769974597316,0.00109057,2336.9,2335.8,0.16525238]
[1769974597611,0.00159205,2336.7,2334.9,0.1652554]
[1769974597811,2.51,2337.1,2335.2,0.1652554]
[1769974598212,2.51159205,2337.1,2335.6,0.1652554]
[1769974598614,0.21415,2337.1,2336.0,0.1652554]
[1769974599019,0.00159205,2337.0,2335.3,0.1652554]
[1769974599219,0.00159205,2337.0,2335.5,0.1629966]
[1769974599420,0.21574205,2337.0,2335.6,0.1629966]
[1769974599620,0.00610964,2336.8,2335.6,0.1629966]
[1769974600113,0.22027964,2336.8,2335.6,0.1629966]
[1769974600318,0.21417,2336.8,2336.0,1.45928016]
[1769974600618,0.00610964,2337.2,2336.0,0.1629966]
[1769974600917,0.00463878,2337.3,2335.2,0.00382264]
[1769974600918,0.21875878,2337.3,2336.5,0.1629966]
[1769974601809,5.08863551,2338.5,2336.6,0.16278196]
[1769974602015,0.22062894,2337.7,2336.6,0.16278196]
[1769974602210,0.21409,2337.7,2336.6,0.16278196]
[1769974602416,0.21409,2337.7,2336.8,0.16278196]
[1769974602818,0.21871122,2337.7,2337.0,0.16278196]
[1769974603020,0.21871122,2337.7,2337.0,0.16665282]
[1769974604613,0.21871122,2337.7,2337.0,0.16560875]
[1769974604820,1e-08,2337.7,2337.5,0.16173789]
[1769974605022,0.21403,2338.3,2337.5,0.16173789]
[1769974605523,2.511,2338.5,2337.7,0.16171462]
[1769974606022,2.5143149,2338.5,2337.7,0.16171462]
[1769974606523,0.21395,2339.2,2337.8,0.16171462]
[1769974606722,0.21395,2339.2,2338.4,0.16171462]
[1769974607526,0.21713432,2339.2,2338.4,0.16171462]
[1769974609222,0.21713432,2339.2,2338.4,1.45799818]
[1769974609827,0.21713432,2339.2,2338.5,0.16027465]
[1769974610027,2.511,2339.4,2338.4,0.16027465]
[1769974611125,2.51415902,2339.4,2338.4,0.16027465]
[1769974611326,0.21395,2339.2,2338.4,0.16027465]
[1769974612428,0.21395,2339.2,2338.6,1.45606093]
[1769974612628,0.21395,2339.2,2338.6,0.15977737]
[1769974612826,0.21395,2339.2,2338.7,1.45606093]
[1769974613028,0.21395,2339.2,2338.7,0.16528146]
[1769974613322,0.21395,2339.2,2338.9,0.15884919]
[1769974613629,2.511,2339.6,2338.8,0.15884919]
[1769974613830,2.52528082,2339.6,2338.7,0.00550409]
[1769974614326,0.21395,2339.2,2338.7,0.16435328]
[1769974614522,0.2188786,2339.2,2338.7,0.16435328]
[1769974614728,0.2188786,2339.2,2338.4,0.15884919]
[1769974615629,0.21396,2339.1,2338.4,0.15884919]
[1769974615830,0.21396,2339.1,2338.4,0.16220912]
[1769974617727,5.08863551,2339.7,2338.9,0.15527485]
[1769974617933,0.15633993,2340.8,2339.1,0.09771283]
[1769974618326,0.15633993,2340.7,2339.1,0.09771283]
[1769974618733,0.16148866,2340.7,2339.1,0.09771283]
[1769974619034,0.15633993,2340.6,2339.1,0.09771283]
[1769974619530,0.15633993,2340.1,2338.6,0.09717661]
[1769974620133,0.15633993,2340.0,2338.6,0.09717661]
[1769974623228,0.15633993,2340.3,2338.6,0.09717661]
[1769974624430,0.15633993,2340.6,2338.8,0.0918491]
[1769974624631,0.15633993,2340.6,2339.0,0.0918491]
[1769974625228,0.15633993,2340.6,2339.1,0.09397821]
[1769974626642,0.15633993,2340.3,2339.1,0.09397821]
[1769974626835,0.15633993,2340.1,2338.8,0.09397821]
[1769974627340,0.15633993,2340.0,2338.8,0.09397821]
[1769974628038,0.15600449,2339.8,2338.8,0.09397821]
[1769974628438,0.15600449,2339.7,2338.5,0.21401]
[1769974628737,0.15600449,2339.7,2338.5,0.30734844]
[1769974628940,0.15600449,2340.0,2338.6,0.09333844]
[1769974633445,0.15600449,2339.8,2338.6,0.09333844]
[1769974633743,12.67384629,2340.6,2338.4,0.00335993]
[1769974633744,0.15600449,2339.6,2338.4,0.00335993]
[1769974634142,0.15600449,2339.5,2338.4,0.00335993]
[1769974634536,0.17104204,2340.7,2339.2,0.21394]
[1769974634941,0.16589331,2340.4,2339.1,2.509]
[1769974635441,0.16642696,2340.3,2339.1,2.509]
[1769974635637,0.16642696,2340.3,2339.0,3.85]
[1769974635842,0.16642696,2340.1,2339.0,3.85]
[1769974636237,0.17157569,2340.7,2339.0,7.87698364]
[1769974636442,0.17157569,2340.7,2339.0,4.06396]
[1769974636950,0.17157569,2340.7,2339.0,7.87698364]
[1769974637446,0.16734252,2340.6,2339.0,4.06396]
[1769974637646,0.16734252,2340.5,2339.0,4.06396]
[1769974638348,0.16734252,2340.4,2339.0,4.06396]
[1769974640749,0.16734252,2340.4,2339.0,7.87698364]
[1769974640951,0.16734252,2340.4,2339.0,4.06396]
[1769974641151,0.16632685,2340.3,2339.0,4.06396]
[1769974641450,0.16632685,2340.2,2339.0,4.06396]
[1769974642046,0.16632685,2340.6,2339.0,4.06396]
[1769974642252,0.16632685,2340.6,2339.1,8.04789879]
[1769974642650,0.16632685,2340.5,2339.1,8.04789879]
[1769974643353,0.16632685,2340.5,2339.2,4.02092515]
[1769974643653,0.1668471,2340.4,2339.2,4.02092515]
[1769974643953,0.1668471,2340.3,2339.2,4.02092515]
[1769974644150,0.1668471,2340.3,2339.1,8.04789879]
[1769974644455,2.1118311,2340.2,2339.1,4.23487515]
[1769974644656,0.1668471,2340.2,2339.1,4.23487515]
[1769974644858,1.944984,2340.1,2339.2,4.02092515]
[1769974645251,1.944984,2340.0,2339.2,4.02092515]
[1769974645448,1.944984,2340.1,2339.2,7.83394879]
[1769974645957,1.944984,2340.0,2339.2,7.83394879]
[1769974646255,1.944984,2340.1,2339.3,4.02092515]
[1769974646656,1.944984,2340.0,2339.3,4.02092515]
[1769974647059,1.944984,2339.9,2339.3,4.02092515]
[1769974647357,1.944984,2340.0,2339.4,4.02092515]
[1769974647748,1.944984,2339.9,2339.4,4.02092515]
[1769974647947,1.944984,2340.0,2339.4,4.02092515]
[1769974648150,1.944984,2340.1,2339.3,3.81302364]